Cogmind - Beta 12 X6 @@@ ROGUE MODE // 2023.02.23 @ 15:25:27 Player: ArabianSandBoa Result: Destroyed by D-53 Grenadier with Mini Grenade Launcher Performance ------------- Evolutions (0) 0 Regions Visited (2) 400 Robots Destroyed (33) 165 Value Destroyed (683) 683 Prototype IDs (3) 60 Alien Tech Used (0) 0 Bonus (-32) -32 TOTAL SCORE: 1276 Bonus ------- Friendly Fire -32 Cogmind --------- Core Integrity 0/250 Matter 205/300 Energy 214/250 System Corruption 0% Temperature Warning (331) Movement Rolling (215) Ox9 Location -10/Mines Parts ------- > --- POWER (1) -------- Ion Engine > --- PROPULSION (2) --- Wheel > --- UTILITY (2) ------ Huge Storage Unit > --- WEAPON (2) ------- Spread Laser Spread Laser > --- INVENTORY (25) --- Wheel Wheel Wheel Improved Heat Sink Large Storage Unit Large Storage Unit High-capacity Storage Unit Improved Terrain Scanner Targeting Computer Light Armor Plating Medium Laser Spread Laser Spread Laser Assault Rifle Light Assault Rifle Autogun Autogun Autogun Autogun Light Cannon Grenade Launcher Mining Laser Peak State ------------ > --- POWER ------------ Ion Engine > --- PROPULSION ------- Compact Wheel Compact Wheel > --- UTILITY ---------- Huge Storage Unit Light Armor Plating > --- WEAPON ----------- Autogun Autogun > --- INVENTORY -------- Light Treads Light Treads Wheel Wheel Wheel Wheel Improved Heat Sink Large Storage Unit Large Storage Unit High-capacity Storage Unit Improved Terrain Scanner Light Armor Plating Medium Laser Spread Laser Spread Laser Spread Laser Spread Laser Assault Rifle Light Assault Rifle Autogun Autogun Light Cannon Grenade Launcher Mining Laser [Rating: 12] Favorites ----------- Power Ion Engine Engine Ion Engine Propulsion Compact Wheel Leg Aluminum Leg Wheel Compact Wheel Utility Light Armor Plating Storage Huge Storage Unit Processor Signal Interpreter Protection Light Armor Plating Weapon Autogun Energy Gun Spread Laser Ballistic Gun Autogun Launcher Grenade Launcher Build | -11 -10 -10 ------- Run | Jun Mat Min Slots Evolved . | . . . Power . | . . . Propulsion . | . . . Utility . | . . . Weapon . | . . . Parts Attached 22 | 2 14 6 Power 1 | . 1 . Engine 1 | . 1 . Core . | . . . Reactor . | . . . Propulsion 5 | 2 1 2 Treads . | . . . Leg . | . . . Wheel 5 | 2 1 2 Hover . | . . . Flight . | . . . Utility 5 | . 5 . Device . | . . . Storage 3 | . 3 . Processor 1 | . 1 . Hackware . | . . . Protection 1 | . 1 . Artifact . | . . . Weapon 11 | . 7 4 Energy Gun 5 | . 2 3 Energy Cannon . | . . . Ballistic Gun 4 | . 4 . Ballistic Cannon . | . . . Launcher 2 | . 1 1 Special Weapon . | . . . Impact Weapon . | . . . Slashing Weapon . | . . . Piercing Weapon . | . . . Special Melee Weapon . | . . . Unidentified Prototypes . | . . . Parts Lost 6 | . 4 2 Power 1 | . 1 . Propulsion 3 | . 2 1 Utility 1 | . . 1 Weapon 1 | . 1 . Highest Loss Streak 4 | . 4 1 To Critical Strikes . | . . . Average Slot Usage (%) 88 | . 82 97 Engine 13 | . 13 14 Wheel 19 | . 15 25 Storage 14 | . 14 14 Processor 1 | . 2 . Protection 10 | . 8 14 Energy Gun 9 | . 3 18 Ballistic Gun 16 | . 21 8 Launcher 1 | . 2 . Naked Turns . | . . . Heaviest Build 94 | 12 94 94 Greatest Support 32 | 26 26 32 Greatest Overweight (x) 5 | . 5 5 Average Overweight (x) 2 | . 2 2 Largest Inventory Capacity 25 | 8 25 25 Average Capacity 19 | 8 15 25 Most Carried 25 | 8 23 25 Average Carried 16 | 6 12 24 Final Capacity 25 | 8 25 25 Final Carried 23 | 8 23 22 Class Distribution -------------------- 100% | Mutant Dominant Class ---------------- Mutant | -10/Materials Mutant | -10/Mines Resources | -11 -10 -10 ----------- Run | Jun Mat Min Matter Collected 661 | 226 166 269 Remotely . | . . . Salvage Created 1007 | 85 640 282 Parts 70 | 5 48 17 Haulers Intercepted 1 | . 1 . Recyclers Shooed 2 | . 2 . Parts Field Recycled . | . . . Retrieved Matter . | . . . Parts Self-Destructed . | . . . Prevented . | . . . Kills | -11 -10 -10 ------- Run | Jun Mat Min Combat Hostiles Destroyed 27 | . 13 14 Guns 19 | . 9 10 AOE 8 | . 4 4 Classes Destroyed 10 | 2 6 2 Worker 1 | . . 1 Builder 3 | . 3 . Tunneler 2 | 1 1 . Hauler 1 | . 1 . Recycler 3 | 1 1 1 Operator 1 | . 1 . Watcher 2 | . 2 . Swarmer 6 | . 3 3 Grunt 14 | . 10 4 Assembled 7 | . . 7 Best Kill Streak 8 | 2 5 8 Combat Bots Only 7 | . 5 7 Max Kills in Single Turn 3 | 1 3 3 Gunslinging 1 | . . 1 Exploded 3 | . 3 2 Melee . | . . . Uniques/NPCs Destroyed . | . . . Combat | -11 -10 -10 -------- Run | Jun Mat Min Damage Taken 995 | . 455 540 Core 262 | . 107 155 Absorbed by Shields . | . . . Core Remaining (%) 100 | 100 . . Volleys Fired 73 | 2 46 25 Largest 2 | 2 2 2 Hottest 130 | 60 85 130 Shots Fired 139 | 4 85 50 Gun 133 | 4 82 47 Cannon . | . . . Launcher 6 | . 3 3 Special . | . . . Kinetic 87 | 2 65 20 Thermal 32 | . 5 27 Explosive 6 | . 3 3 Electromagnetic 14 | 2 12 . Robot Hit Streak 9 | 1 9 8 Robot Miss Streak 8 | 1 3 8 Penetration Max . | . . . Secondary Targets 2 | . 1 1 Max Gunslinging Chain 1 | . 1 1 Shots Hit Robots 95 | 2 53 40 Core Hits 82 | 2 28 52 Critical Kills 1 | 1 . . Critical Parts Destroyed . | . . . Critical Strikes 2 | 1 1 . Destroy 1 | 1 . . Corrupt 1 | . 1 . Melee Attacks . | . . . Impact . | . . . Slashing . | . . . Piercing . | . . . Sneak Attacks . | . . . Combat Hostiles . | . . . Follow-up Attacks . | . . . Damage Inflicted 1948 | 23 1024 901 Guns 1281 | 23 731 527 Cannons . | . . . Explosions 667 | . 293 374 Melee . | . . . Ramming . | . . . Kinetic 843 | 23 564 256 Thermal 350 | . 79 271 Explosive 619 | . 245 374 Electromagnetic 136 | . 136 . Impact . | . . . Slashing . | . . . Piercing . | . . . Highest Corruption . | . . . Average Corruption . | . . . Corruption Purged . | . . . Corruption Blocked . | . . . Overload Shots . | . . . Overflow Damage 8 | . 8 . Projectiles . | . . . Explosions 8 | . 8 . Melee . | . . . Knockbacks . | . . . Impact . | . . . Kinetic . | . . . Secondary . | . . . Self-Inflicted Damage 32 | . 32 . Shots 1 | . 1 . Rammed . | . . . Targets Rammed . | . . . Kicked . | . . . Crushed . | . . . Highest Temperature 435 | . 126 435 Average Temperature 87 | . 41 132 Received Heat Transfer 359 | . 222 137 Effects 1 | . . 1 Damage (minor) 1 | . . 1 Siege Activations . | . . . Robots Corrupted . | . . . Combat Hostiles . | . . . Parts Fried . | . . . Impact Corruptions . | . . . Robots Melted . | . . . Combat Hostiles . | . . . Parts Melted 1 | . 1 . Heat Transferred 464 | . 124 340 Parts Sabotaged . | . . . Parts Stolen . | . . . Parts Stripped . | . . . Power Chain Reactions 1 | . 1 . Missiles Intercepted . | . . . Alert | -11 -10 -10 ------- Run | Jun Mat Min Peak Influence 261 | 10 261 191 Initial 51 | . 6 51 Average 119 | 5 109 141 Maximum Alert Level 1 | . 1 1 Low Security (%) 94 | 100 91 99 Level 1 5 | . 8 . Level 2 . | . . . Level 3 . | . . . Level 4 . | . . . Level 5 . | . . . High Security . | . . . Max Security . | . . . Squads Dispatched 4 | . 4 . Investigation 2 | . 2 . Extermination . | . . . Reinforcement 2 | . 2 . Assault . | . . . Garrison . | . . . Intercept . | . . . Searches Triggered . | . . . Construction Impeded . | . . . Haulers Reinforced . | . . . Active Scanning Responses . | . . . Cargo Convoy Interrupts . | . . . Stealth | -11 -10 -10 --------- Run | Jun Mat Min Distress Signals . | . . . Communications Jammed . | . . . Distress Signals . | . . . Times Spotted 46 | . 21 25 Peak Tracking Total 19 | . 4 19 Tactical Retreats 2 | . 1 1 Traps | -11 -10 -10 ------- Run | Jun Mat Min Traps Triggered 1 | . 1 . Indirectly . | . . . Trap Hack Attempts . | . . . Triggered . | . . . Disarmed . | . . . Reprogrammed . | . . . Reused . | . . . Traps Extracted . | . . . Installed . | . . . Triggered . | . . . Machines | -11 -10 -10 ---------- Run | Jun Mat Min Machines Disabled 3 | . 3 . Max in Single Turn 2 | . 2 . Machines Repaired . | . . . Machines Sabotaged . | . . . Overloaded Fab Kills . | . . . Hacking | -11 -10 -10 --------- Run | Jun Mat Min Machines Accessed 5 | . 5 . Terminals 4 | . 4 . Fabricators . | . . . Repair Stations . | . . . Recycling Units 1 | . 1 . Scanalyzers . | . . . Garrison Access . | . . . Total Hacks 17 | . 17 . Successful 9 | . 9 . Failed 8 | . 8 . Catastrophic . | . . . Database Lockouts . | . . . Manual 7 | . 7 . Terminals 15 | . 15 . Fabricators . | . . . Repair Stations . | . . . Recycling Units 2 | . 2 . Scanalyzers . | . . . Garrison Access . | . . . Terminal Hacks 7 | . 7 . Part Schematic 1 | . 1 . Prototype ID Bank 2 | . 2 . Branch Access Points 1 | . 1 . Unreport Threat 1 | . 1 . Registered Components 1 | . 1 . Zone Layout 1 | . 1 . Fabricator Hacks . | . . . Repair Station Hacks . | . . . Recycling Unit Hacks 2 | . 2 . Report Inventory 1 | . 1 . Retrieve Components 1 | . 1 . Scanalyzer . | . . . Garrison Access Hacks . | . . . Unauthorized Hacks . | . . . Terminals . | . . . Fabricators . | . . . Repair Stations . | . . . Recycling Units . | . . . Scanalyzers . | . . . Garrison Access . | . . . Data Cores Recovered . | . . . Used . | . . . Hacking Detections 3 | . 3 . Full Trace Events 2 | . 2 . Feedback Events . | . . . Feedback Blocked . | . . . Robot Schematics Acquired . | . . . Robots Built . | . . . Authchips . | . . . Time . | . . . Total Robot Build Rating . | . . . Part Schematics Acquired 1 | . 1 . Parts Built . | . . . Authchips . | . . . Time . | . . . Total Part Build Rating . | . . . Parts Repaired . | . . . Time . | . . . Parts Recycled . | . . . Recycled Matter . | . . . Retrieved Matter . | . . . Retrieved Components 1 | . 1 . Parts Scanalyzed . | . . . Part Schematics Acquired . | . . . Parts Damaged . | . . . Bothacking | -11 -10 -10 ------------ Run | Jun Mat Min Used RIF Installer . | . . . Robots Hacked . | . . . Non-combat . | . . . Combat . | . . . Robot Hacks Applied . | . . . Relay Couplers Released . | . . . Fabnet Peak Effective % . | . . . Robots Rewired . | . . . Allies Hacked . | . . . Hacks Repelled . | . . . Allies | -11 -10 -10 -------- Run | Jun Mat Min Total Allies . | . . . Largest Group . | . . . Highest-Rated Group . | . . . Highest-Rated Ally . | . . . Total Orders . | . . . Ally Attacks . | . . . Total Damage . | . . . Kills . | . . . Allies Corrupted . | . . . Allies Melted . | . . . Intel | -11 -10 -10 ------- Run | Jun Mat Min Robot Analysis Total . | . . . Derelict Logs Recovered 1 | . . 1 Drone Launches . | . . . Drone Recoveries . | . . . Exploration | -11 -10 -10 ------------- Run | Jun Mat Min Turns Passed 1214 | 26 729 459 Spaces Moved 689 | 17 409 263 Core 2 | . 2 . Treads . | . . . Legs 2 | 2 . . Wheels 685 | 15 407 263 Hover . | . . . Flight . | . . . Fastest Speed 90 | 90 90 130 Average Speed 130 | 93 129 133 Slowest Speed 200 | 120 200 175 Overloaded Moves . | . . . Propulsion Burnouts . | . . . Robots Hopped . | . . . Cave-ins Triggered . | . . . Exploration Rate (%) 48 | 2 80 62 Regions Visited 2 Branch Regions 1 Pre-discovered Areas . | . . . Known Exits Taken 1 | . 1 . Unknown Exits Taken 1 | 1 . . Scrap Searched 1 | . . 1 Spaces Dug . | . . . Terrain Destroyed 32 | . 18 14 Melee . | . . . Projectile . | . . . AOE 32 | . 18 14 Terrain Rammed . | . . . Walls Destroyed . | . . . Machines Disabled . | . . . Actions | -11 -10 -10 --------- Run | Jun Mat Min Total 875 | 22 528 325 Wait 62 | . 36 26 Move 687 | 16 408 263 Hop . | . . . Pick Up 23 | 2 18 3 Fast Attach 4 | . 4 . Attach 5 | . 3 2 Detach . | . . . Swap 13 | 2 7 4 Drop 8 | . 6 2 Fire 73 | 2 46 25 Melee . | . . . Ram . | . . . Kick . | . . . Crush . | . . . Escape Stasis . | . . . Rewire . | . . . Trap . | . . . Miscellaneous . | . . . Route ------- -11/Junkyard -10/Materials (discovered 4 exits: [*Mat x2] / *Min x2) -10/Mines History --------- Turn | Location | Event 1 | -11/Junkyard | Discovered new exit (range 2) 27 | -11/Junkyard | Entered Materials 179 | -10/Materials | Lost 4 parts (1p2n1w) 231 | -10/Materials | Discovered new exit (range 9) 254 | -10/Materials | Identified exit to Mines 307 | -10/Materials | Build established: Mutant 355 | -10/Materials | Discovered new exit (range 8) 485 | -10/Materials | Discovered new exit (range 15) 756 | -10/Materials | Entered Mines 769 | -10/Mines | Core integrity fell below 50% 929 | -10/Mines | Learned Materials garrison access intel 1179 | -10/Mines | Assembled infested the area 1184 | -10/Mines | Assisted by a Guerilla fighting off Assembled 1212 | -10/Mines | Core integrity fell below 20% 1215 | -10/Mines | Destroyed by D-53 Grenadier with Mini Grenade Launcher Last Messages --------------- 01198_ HV Slug penetrates as-92233. 01198_ as-92233 suffers critical hit (Destroy). 01200_ as-92233 destroyed. 01200_ HV Slug penetrates Wall. 01201_ HE-35O(h) suffers critical hit (Destroy). 01202_ HE-35O(h) destroyed. 01203_ as-93269 destroyed. 01203_ K-01 Serf destroyed. 01206_ The unstable cave ceiling collapses. 01210_ as-03623 destroyed. 01210_ Switching to secondary target: as-04262. 01210_ as-04262 destroyed. 01211_ Com. Wheel severed. 01213_ Lgt. Armor Plating destroyed. 01213_ as-52607 destroyed. 01215_ C-30 ARC bursts open, deploying its payload. 01215_ D-53 Grenadier unfolds itself. 01215_ as-25426 destroyed. 01215_ as-97019 destroyed. 01215_ as-36250 destroyed. Map ----- +----------------------------------------------------+ | | | ?????????????????????????????????????????????????? | | ?????????????????????????????????????????????????? | | ?????????????????????????????????????????????????? | | ?????????????????????????????????????????????????? | | ?????????????????????????????????????????????????? | | ?????????????????????????????????????????????????? | | ?????????????????????????????????????????????????? | | ?????????????????????????????????????????????????? | | ?????????????????????????????????????????????????? | | ?????????????????????????????????????????????????? | | ?????????????????????????????????????????????????? | | ?????????????????????????????????????????????????? | | ?????????????????????????????????????????????????? | | ?????????????????????????????????????????????????? | | ?????????????????????????????????????????????????? | | ?????????????????????#####???????????????????????? | | ????????????????????## #??????????????????????? | | ?????????????# ?????# ??????????????????????? | | ???????????? ????## ??????????????????????? | | ???????????? ???? #??????????????????????? | | ????????????? ????? #??????????????????????? | | ????????????? ??????# ##?????????????????????? | | ?????????????# ?????## #?????????????????????? | | ?????????????# ????## ##??????????####??????? | | ???????????### ????# @% #????????? ##?????? | | ???????????? #???# %a ###??????? ##????? | | ?????????????# ###### % a ##????? #????? | | ???????????### #???# #### ? | | ??????????## *% a ?# ? | | ?????????## d%## a%!a% ? | | ??######## ### = ## a #?????? | | ??? """ #?##!*##### a ##???????? | | ?????? """ #??##=#????# ###????????? | | ????????## """ #???#=#?????# ##??????????? | | ????????## ##??# #????# #???????????? | | ????????# ## ##?# #???# #???????????? | | ????????# ##### ### #???# #??????????? | | ????????## #???## #???## #?????????? | | ?????????## #????# #????### #????????? | | ??####????# #############??????## ????????? | | ### ###??# #????????????????### #???????? | | ##?# ### #???????????????????# ##???????? | | ### #?# ##################???###????????? | | ## #?# != = #??????????????? | | #?# ################ #????####??????? | | """ ### ##????????????# #???## ##?????? | | """ #### ### ##???????????# #???# #?????? | | """ #### ## #???????????# #??## #?????? | | = ##??????????# #?## #?????? | +----------------------------------------------------+ Best States ------------- Heat Dissipation 25 Energy Generation 10 Energy Capacity 250 Matter Stores 300 Matter Capacity 300 Sight Range 16 Terrain Scan Density 10 Armor Coverage 150 Evasion (%) 42 Item Schematics ----------------- Cargo Storage Unit | -10/Materials | Hacked Robot Schematics ------------------ None Fabricated ------------ Nothing Alien Tech Used ----------------- None Achievements -------------- None Challenges ------------ None Game ------ Seed DimensionalSwordCalibrator Manual? 0 Play Time 00:11:18 Cumulative 369.5 hours Start 2023.02.23 @ 15:16:36 End 2023.02.23 @ 15:25:27 Sessions 1 Manual Loads 0 Difficulty Rogue Special Mode None Game No. 428 Rogue 428 Adventurer 0 Explorer 0 Win Type - Total 0 Types 0/0/0/0/0/0/0/0/0 Lore% 51 Gallery% 74 Achievement% 61 Wizard Run 0 Options --------- ASCII 0 Keyboard 0 Movement Mouse Keybinds 0 Fullscreen 2 Font 24/Smallcaps Map View 76x50 Tactical HUD 1 Map Filters NONE Filters NONE Steam 1 RUN: 98436782-03ef-458b-bf3d-6e1e0ede196b